Cogmind - Beta 13 @@@ ROGUE MODE // 2024.04.11 @ 23:49:49 Player: luckinvolved Result: Destroyed by H-71 Marshal with Heavy Mass Driver Performance ------------- Evolutions (6) 3000 Regions Visited (10) 2000 Robots Destroyed (54) 270 Value Destroyed (1453) 1453 Prototype IDs (2) 40 Alien Tech Used (0) 0 Bonus (0) 0 TOTAL SCORE: 6763 Bonus ------- None Cogmind --------- Core Integrity 0/1150 Matter 300/300 Energy 18/450 System Corruption 0% Temperature Cool (0) Movement Hovering (70) Location -4/Factory Parts ------- > --- POWER (2) -------- (None) > --- PROPULSION (6) --- Improved Gyrokinetic Inverter > --- UTILITY (9) ------ Cryofiber Web Energy Well Advanced Signal Interpreter Improved Target Analyzer > --- WEAPON (2) ------- Heavy Flail Heavy Flail > --- INVENTORY (5) ---- Antimatter Reactor Antimatter Reactor Matter Compressor (188) Advanced Focal Shield Advanced Plasma Cannon Peak State ------------ > --- POWER ------------ Angular Momentum Engine > --- PROPULSION ------- Gravmag Array Gravmag Array Gravmag Array > --- UTILITY ---------- Cryofiber Web Advanced Signal Interpreter Improved Particle Charger Hardened Light Armor Plating Improved Medium Armor Plating Graphene Brace Improved Thermal Shield Improved Dynamic Insulation System > --- WEAPON ----------- Phase Cannon Advanced Plasma Cannon > --- INVENTORY -------- Reinforced Deuterium Engine Matter Compressor Particle Gun Plasma Cannon [Rating: 85] Favorites ----------- Power Reinforced Deuterium Engine Engine Reinforced Deuterium Engine Power Core Fission Core Reactor Antimatter Reactor Propulsion Wheel Treads Advanced Medium Treads Leg Titanium Leg Wheel Wheel Hover Unit Gravmag Array Flight Unit Improved Cesium-ion Thruster Utility Medium Storage Unit Device Graphene Brace Storage Medium Storage Unit Processor Targeting Computer Hackware System Shield Protection Improved Medium Armor Plating Weapon Assault Rifle Energy Gun Beam Rifle Energy Cannon Advanced Plasma Cannon Ballistic Gun Assault Rifle Ballistic Cannon Advanced Assault Cannon Launcher Grenade Launcher Impact Weapon Heavy Flail Build | -11 -10 -10 -10 -9 -8 -7 -6 -5 -5 -4 ------- Run | Yrd Mat Min Exi Min Mat Fac Fac Fac Ext Fac Slots Evolved 12 | . . . . . 4 2 2 2 . 2 Power 1 | . . . . . . . . . . 1 Propulsion 4 | . . . . . 1 1 1 1 . . Utility 7 | . . . . . 3 1 1 1 . 1 Weapon . | . . . . . . . . . . . Parts Attached 108 | 9 8 . . . 17 19 29 7 2 17 Power 15 | 1 2 . . . 1 2 4 2 . 3 Engine 13 | 1 2 . . . 1 2 3 2 . 2 Core 1 | . . . . . . . 1 . . . Reactor 1 | . . . . . . . . . . 1 Propulsion 33 | 3 3 . . . 4 8 9 1 . 5 Treads 1 | . . . . . . . . . . 1 Leg 10 | . . . . . 2 4 4 . . . Wheel 10 | 3 3 . . . 2 1 1 . . . Hover 5 | . . . . . . . 2 1 . 2 Flight 7 | . . . . . . 3 2 . . 2 Utility 36 | 3 3 . . . 8 5 7 3 1 6 Device 17 | 2 1 . . . 4 2 4 1 1 2 Storage 10 | 1 2 . . . . 3 1 1 . 2 Processor 4 | . . . . . 1 . 1 . . 2 Hackware 1 | . . . . . 1 . . . . . Protection 4 | . . . . . 2 . 1 1 . . Artifact . | . . . . . . . . . . . Weapon 24 | 2 . . . . 4 4 9 1 1 3 Energy Gun 8 | . . . . . 1 1 6 . . . Energy Cannon 4 | . . . . . 1 . . 1 1 1 Ballistic Gun 4 | 2 . . . . 2 . . . . . Ballistic Cannon 3 | . . . . . . 2 1 . . . Launcher 3 | . . . . . . 1 2 . . . Special Weapon . | . . . . . . . . . . . Impact Weapon 2 | . . . . . . . . . . 2 Slashing Weapon . | . . . . . . . . . . . Piercing Weapon . | . . . . . . . . . . . Special Melee Weapon . | . . . . . . . . . . . Unidentified Prototypes 2 | . . . . . . 2 . . . . Parts Lost 53 | . 2 . . . 17 2 18 . 5 9 Power 5 | . 1 . . . 2 . 2 . . . Propulsion 19 | . 1 . . . 5 . 6 . 1 6 Utility 17 | . . . . . 5 1 5 . 4 2 Weapon 12 | . . . . . 5 1 5 . . 1 Highest Loss Streak 13 | . 1 . . . 6 1 13 . 5 4 To Critical Strikes . | . . . . . . . . . . . Average Slot Usage (%) 73 | . 97 100 100 100 85 59 74 72 79 44 Engine 6 | . 12 14 14 14 8 6 4 5 5 . Leg 6 | . . . . . 2 8 18 . . . Wheel 8 | . 27 28 28 28 19 . . . . . Hover 3 | . . . . . . . 2 17 17 6 Flight 1 | . . . . . . 3 1 . . 2 Device 14 | . 16 14 14 14 10 7 17 20 26 12 Storage 7 | . 11 14 14 14 9 7 7 2 . 2 Processor 4 | . . . . . . 7 4 5 5 7 Protection 2 | . . . . . 13 . 1 7 10 . Energy Gun 3 | . . . . . 7 3 7 9 4 . Energy Cannon 1 | . . . . . . . . 1 6 4 Ballistic Gun 8 | . 28 28 28 28 9 6 . . . . Naked Turns . | . . . . . . . . . . . Heaviest Build 53 | 13 18 18 18 18 30 39 40 46 53 51 Greatest Support 70 | 26 20 20 20 20 42 55 70 60 60 40 Greatest Overweight (x) 9 | 1 5 . . . 1 5 9 . . 1 Average Overweight (x) . | . . . . . . 1 . . . . Largest Inventory Capacity 10 | 8 10 10 10 10 10 10 10 5 5 5 Average Capacity 8 | 7 8 10 10 10 10 10 8 5 5 5 Most Carried 10 | 8 8 4 5 10 10 10 10 5 4 5 Average Carried 6 | 4 4 4 4 6 7 8 7 3 4 4 Final Capacity 10 | 8 10 10 10 10 10 10 5 5 5 5 Final Carried 10 | 8 4 4 5 10 9 9 5 4 4 5 Class Distribution -------------------- 54% | Mutant 26% | Scavenger-Skirmisher 19% | Scavenger-Mutant Dominant Class ---------------- Mutant | -10/Materials Mutant | -10/Mines Mutant | -10/Exiles Mutant | -9/Mines Scavenger-Mutant | -8/Materials Scavenger-Skirmisher | -7/Factory Scavenger-Skirmisher | -6/Factory Scavenger-Skirmisher | -5/Factory Mutant | -5/Extension Mutant | -4/Factory Resources | -11 -10 -10 -10 -9 -8 -7 -6 -5 -5 -4 ----------- Run | Yrd Mat Min Exi Min Mat Fac Fac Fac Ext Fac Matter Collected 1736 | 332 117 . 43 73 251 222 242 . 231 225 Remotely 106 | 106 . . . . . . . . . . Salvage Created 1930 | 138 93 . . 95 427 286 515 . 277 99 Parts 110 | 12 8 . . 2 25 14 36 . 12 1 Haulers Intercepted 2 | . . . . . 1 . . . . 1 Recyclers Shooed 4 | . . . . . . . 3 1 . . Parts Field Recycled . | . . . . . . . . . . . Retrieved Matter . | . . . . . . . . . . . Parts Self-Destructed . | . . . . . . . . . . . Prevented . | . . . . . . . . . . . Kills | -11 -10 -10 -10 -9 -8 -7 -6 -5 -5 -4 ------- Run | Yrd Mat Min Exi Min Mat Fac Fac Fac Ext Fac Combat Hostiles Destroyed 33 | . 4 . . . 9 6 12 . 1 1 Guns 17 | . 4 . . . 8 3 2 . . . Cannons 8 | . . . . . 1 1 5 . 1 . AOE 7 | . . . . . . 2 4 . . 1 Classes Destroyed 13 | 3 2 . . . 4 1 2 . 1 . Worker 4 | 2 . . . . 1 . 1 . . . Builder 6 | . . . . . . 1 3 . 2 . Tunneler 3 | 2 . . . . . 1 . . . . Hauler 2 | . . . . . 1 . . . . 1 Recycler 5 | 1 . . . 1 . 1 1 . 1 . Watcher 1 | . . . . . . . . . 1 . Swarmer 14 | . 2 . . . 4 3 4 . . 1 Grunt 8 | . 2 . . . . 3 3 . . . Duelist 1 | . . . . . . . 1 . . . Sentry 3 | . . . . . 2 . 1 . . . Hunter 5 | . . . . . 2 . 2 . 1 . Programmer 1 | . . . . . . . 1 . . . Heavy 1 | . . . . . 1 . . . . . Best Kill Streak 10 | 5 2 . . 1 5 3 10 . 2 1 Combat Bots Only 8 | . 2 . . . 5 3 8 . 1 1 Max Kills in Single Turn 5 | 1 1 . . 1 1 2 5 . 1 1 Gunslinging . | . . . . . . . . . . . Exploded 3 | . . . . . . 1 3 . . 1 Melee . | . . . . . . . . . . . Uniques/NPCs Destroyed . | . . . . . . . . . . . Combat | -11 -10 -10 -10 -9 -8 -7 -6 -5 -5 -4 -------- Run | Yrd Mat Min Exi Min Mat Fac Fac Fac Ext Fac Hostile Shots Fired 688 | . 55 . . . 120 38 248 . 62 165 Missed 240 | . 15 . . . 37 9 85 . 18 76 Damage Taken 8150 | . 389 . . . 1367 460 2495 . 1223 2216 Core 2664 | . 70 . . . 341 105 622 . 315 1211 Absorbed by Shields 20 | . . . . . . . 20 . . . Redirected to Shielding 54 | . . . . . 54 . . . . . Ignored by Resistances 120 | . . . . . . . . . 48 72 Core Remaining (%) 64 | 100 . . . 72 38 85 26 . 68 . Volleys Fired 163 | 7 15 . . 5 44 20 47 1 16 8 Largest 2 | 2 2 . . 2 2 2 2 2 2 2 Hottest 183 | 40 40 . . 40 88 104 128 163 183 183 Shots Fired 302 | 14 30 . . 10 88 34 82 2 28 14 Gun 225 | 14 30 . . 10 83 28 50 1 9 . Cannon 65 | . . . . . 5 3 23 1 19 14 Launcher 12 | . . . . . . 3 9 . . . Special . | . . . . . . . . . . . Kinetic 138 | 14 30 . . 10 47 14 23 . . . Thermal 128 | . . . . . 41 17 26 2 28 14 Explosive 12 | . . . . . . 3 9 . . . Electromagnetic 24 | . . . . . . . 24 . . . Robot Hit Streak 15 | 5 5 . . 3 7 8 7 1 15 7 Robot Miss Streak 5 | 1 3 . . 2 4 2 5 1 1 4 Penetration Max 1 | . . . . . . 1 . . . . Secondary Targets 1 | . 1 . . . . . . . . . Max Gunslinging Chain 1 | . 1 . . . . . . . . . Shots Hit Robots 183 | 10 18 . . 6 47 20 51 1 22 8 Core Hits 104 | 6 6 . . 2 19 14 43 1 9 4 Critical Kills . | . . . . . . . . . . . Critical Parts Destroyed . | . . . . . . . . . . . Critical Strikes 3 | . . . . . 2 . 1 . . . Burn 3 | . . . . . 2 . 1 . . . Melee Attacks . | . . . . . . . . . . . Impact . | . . . . . . . . . . . Slashing . | . . . . . . . . . . . Piercing . | . . . . . . . . . . . Sneak Attacks . | . . . . . . . . . . . Combat Hostiles . | . . . . . . . . . . . Follow-up Attacks . | . . . . . . . . . . . Damage Inflicted 4832 | 123 243 . . 66 746 501 1850 38 723 542 Guns 2034 | 123 243 . . 66 677 238 564 . 123 . Cannons 1470 | . . . . . 69 53 455 38 600 255 Explosions 1328 | . . . . . . 210 831 . . 287 Melee . | . . . . . . . . . . . Ramming . | . . . . . . . . . . . Kinetic 1356 | 123 243 . . 66 339 130 455 . . . Thermal 2165 | . . . . . 407 220 235 38 723 542 Explosive 982 | . . . . . . 151 831 . . . Electromagnetic 329 | . . . . . . . 329 . . . Impact . | . . . . . . . . . . . Slashing . | . . . . . . . . . . . Piercing . | . . . . . . . . . . . Highest Corruption . | . . . . . . . . . . . Average Corruption . | . . . . . . . . . . . Corruption Purged . | . . . . . . . . . . . Corruption Blocked . | . . . . . . . . . . . Overload Shots . | . . . . . . . . . . . Overflow Damage 80 | . . . . . . 9 21 . 25 25 Projectiles 42 | . . . . . . . 17 . 25 . Explosions 38 | . . . . . . 9 4 . . 25 Melee . | . . . . . . . . . . . Knockbacks 2 | . . . . . . . 2 . . . Impact . | . . . . . . . . . . . Kinetic 2 | . . . . . . . 2 . . . Secondary . | . . . . . . . . . . . Self-Inflicted Damage 116 | . . . . . . . 25 . . 91 Shots 4 | . . . . . . . 2 . . 2 Rammed . | . . . . . . . . . . . Targets Rammed 1 | . . . . . . . 1 . . . Kicked 1 | . . . . . . . 1 . . . Crushed . | . . . . . . . . . . . Highest Temperature 568 | . 5 . . . 122 213 209 29 568 350 Average Temperature 155 | . 5 . . . 50 61 83 14 216 172 Received Heat Transfer 1128 | . 141 . . . 342 153 276 . 102 114 Effects 6 | . . . . . . 1 . . 5 . Energy Bleed 3 | . . . . . . 1 . . 2 . Matter Decay 1 | . . . . . . . . . 1 . Damage (minor) 1 | . . . . . . . . . 1 . Damage (core) 1 | . . . . . . . . . 1 . Siege Activations . | . . . . . . . . . . . Robots Corrupted 1 | . . . . . . . 1 . . . Combat Hostiles 1 | . . . . . . . 1 . . . Parts Fried 3 | . . . . . . . 3 . . . Impact Corruptions . | . . . . . . . . . . . Robots Melted . | . . . . . . . . . . . Combat Hostiles . | . . . . . . . . . . . Parts Melted 10 | . . . . . 5 1 . . . 4 Heat Transferred 3901 | . . . . . 1110 457 629 50 1070 585 Parts Sabotaged . | . . . . . . . . . . . Parts Stolen . | . . . . . . . . . . . Parts Stripped . | . . . . . . . . . . . Power Chain Reactions . | . . . . . . . . . . . Alert | -11 -10 -10 -10 -9 -8 -7 -6 -5 -5 -4 ------- Run | Yrd Mat Min Exi Min Mat Fac Fac Fac Ext Fac Peak Influence 397 | 25 101 39 . 20 279 202 397 123 166 327 Initial 123 | . 16 39 . . 7 106 45 123 60 56 Average 116 | 6 31 39 . 14 142 94 156 123 113 196 Maximum Alert Level 1 | . . . . . 1 1 1 . . 1 Low Security (%) 74 | 100 100 100 . 100 60 73 65 100 100 46 Level 1 25 | . . . . . 39 26 34 . . 53 Level 2 . | . . . . . . . . . . . Level 3 . | . . . . . . . . . . . Level 4 . | . . . . . . . . . . . Level 5 . | . . . . . . . . . . . High Security . | . . . . . . . . . . . Max Security . | . . . . . . . . . . . Squads Dispatched 11 | . . . . . 2 2 5 . 1 1 Investigation 3 | . . . . . . . 3 . . . Extermination 1 | . . . . . . . 1 . . . Reinforcement 7 | . . . . . 2 2 1 . 1 1 Assault . | . . . . . . . . . . . Garrison . | . . . . . . . . . . . Intercept . | . . . . . . . . . . . Searches Triggered . | . . . . . . . . . . . Construction Impeded 3 | . . . . . . 2 1 . . . Haulers Reinforced . | . . . . . . . . . . . Active Scanning Responses 1 | . . . . . . . 1 . . . Cargo Convoy Interrupts . | . . . . . . . . . . . Stealth | -11 -10 -10 -10 -9 -8 -7 -6 -5 -5 -4 --------- Run | Yrd Mat Min Exi Min Mat Fac Fac Fac Ext Fac Distress Signals 2 | . . . . . . . 1 . 1 . Communications Jammed . | . . . . . . . . . . . Distress Signals . | . . . . . . . . . . . Times Spotted 82 | . 7 . . 2 16 6 21 . 15 15 Peak Tracking Total 10 | . 5 . . 2 5 3 8 . 10 6 Tactical Retreats 11 | . . . . . 1 1 3 . 1 5 Traps | -11 -10 -10 -10 -9 -8 -7 -6 -5 -5 -4 ------- Run | Yrd Mat Min Exi Min Mat Fac Fac Fac Ext Fac Traps Triggered 6 | . 1 . . . . . 5 . . . Indirectly . | . . . . . . . . . . . Trap Hack Attempts . | . . . . . . . . . . . Triggered . | . . . . . . . . . . . Disarmed . | . . . . . . . . . . . Reprogrammed . | . . . . . . . . . . . Reused . | . . . . . . . . . . . Traps Extracted . | . . . . . . . . . . . Installed . | . . . . . . . . . . . Triggered . | . . . . . . . . . . . Machines | -11 -10 -10 -10 -9 -8 -7 -6 -5 -5 -4 ---------- Run | Yrd Mat Min Exi Min Mat Fac Fac Fac Ext Fac Machines Disabled 6 | . 1 . . . . 2 . . . 3 Max in Single Turn 2 | . 1 . . . . 1 . . . 2 Machines Repaired . | . . . . . . . . . . . Machines Dismantled . | . . . . . . . . . . . Machines Sabotaged . | . . . . . . . . . . . Overloaded Fab Kills . | . . . . . . . . . . . Hacking | -11 -10 -10 -10 -9 -8 -7 -6 -5 -5 -4 --------- Run | Yrd Mat Min Exi Min Mat Fac Fac Fac Ext Fac Machines Accessed 9 | . . . 1 . 1 . 4 1 2 . Terminals 6 | . . . . . 1 . 2 1 2 . Fabricators . | . . . . . . . . . . . Repair Stations . | . . . . . . . . . . . Recycling Units 1 | . . . . . . . 1 . . . Scanalyzers 1 | . . . . . . . 1 . . . Garrison Access . | . . . . . . . . . . . Total Hacks 16 | . . . 4 . 3 . 6 1 2 . Successful 9 | . . . 4 . 1 . 1 1 2 . Failed 7 | . . . . . 2 . 5 . . . Catastrophic 4 | . . . . . 2 . 2 . . . Database Lockouts . | . . . . . . . . . . . Manual 6 | . . . . . 3 . 2 . 1 . Terminals 9 | . . . . . 3 . 3 1 2 . Fabricators . | . . . . . . . . . . . Repair Stations . | . . . . . . . . . . . Recycling Units 2 | . . . . . . . 2 . . . Scanalyzers 1 | . . . . . . . 1 . . . Garrison Access . | . . . . . . . . . . . Terminal Hacks 9 | . . . 4 . 1 . 1 1 2 . Record 4 | . . . 4 . . . . . . . Open Door 2 | . . . . . . . . 1 1 . Open DSF 1 | . . . . . . . 1 . . . Level Access Points 2 | . . . . . 1 . . . 1 . Fabricator Hacks . | . . . . . . . . . . . Repair Station Hacks . | . . . . . . . . . . . Recycling Unit Hacks . | . . . . . . . . . . . Scanalyzer . | . . . . . . . . . . . Garrison Access Hacks . | . . . . . . . . . . . Unauthorized Hacks . | . . . . . . . . . . . Terminals . | . . . . . . . . . . . Fabricators . | . . . . . . . . . . . Repair Stations . | . . . . . . . . . . . Recycling Units . | . . . . . . . . . . . Scanalyzers . | . . . . . . . . . . . Garrison Access . | . . . . . . . . . . . Data Cores Recovered . | . . . . . . . . . . . Used . | . . . . . . . . . . . Hacking Detections 6 | . . . . . 1 . 4 1 . . Full Trace Events 2 | . . . . . 1 . 1 . . . Feedback Events . | . . . . . . . . . . . Feedback Blocked . | . . . . . . . . . . . Robot Schematics Acquired . | . . . . . . . . . . . Robots Built . | . . . . . . . . . . . Authchips . | . . . . . . . . . . . Time . | . . . . . . . . . . . Total Robot Build Rating . | . . . . . . . . . . . Part Schematics Acquired . | . . . . . . . . . . . Parts Built . | . . . . . . . . . . . Authchips . | . . . . . . . . . . . Time . | . . . . . . . . . . . Total Part Build Rating . | . . . . . . . . . . . Parts Repaired . | . . . . . . . . . . . Time . | . . . . . . . . . . . Parts Recycled . | . . . . . . . . . . . Recycled Matter . | . . . . . . . . . . . Retrieved Matter . | . . . . . . . . . . . Retrieved Components . | . . . . . . . . . . . Parts Scanalyzed . | . . . . . . . . . . . Part Schematics Acquired . | . . . . . . . . . . . Parts Damaged . | . . . . . . . . . . . Bothacking | -11 -10 -10 -10 -9 -8 -7 -6 -5 -5 -4 ------------ Run | Yrd Mat Min Exi Min Mat Fac Fac Fac Ext Fac Used RIF Installer . | . . . . . . . . . . . Robots Hacked . | . . . . . . . . . . . Non-combat . | . . . . . . . . . . . Combat . | . . . . . . . . . . . Robot Hacks Applied . | . . . . . . . . . . . Relay Couplers Released . | . . . . . . . . . . . Fabnet Peak Effective % . | . . . . . . . . . . . Robots Rewired . | . . . . . . . . . . . Allies Hacked . | . . . . . . . . . . . Hacks Repelled . | . . . . . . . . . . . Allies | -11 -10 -10 -10 -9 -8 -7 -6 -5 -5 -4 -------- Run | Yrd Mat Min Exi Min Mat Fac Fac Fac Ext Fac Total Allies 2 | . . 2 . . . . . . . . Largest Group 2 | . . 2 1 . . . . . . . Highest-Rated Group 41 | . . 41 31 . . . . . . . Highest-Rated Ally 31 | . . 31 31 . . . . . . . Total Orders . | . . . . . . . . . . . Ally Attacks . | . . . . . . . . . . . Total Damage . | . . . . . . . . . . . Kills . | . . . . . . . . . . . Allies Corrupted . | . . . . . . . . . . . Allies Melted . | . . . . . . . . . . . Intel | -11 -10 -10 -10 -9 -8 -7 -6 -5 -5 -4 ------- Run | Yrd Mat Min Exi Min Mat Fac Fac Fac Ext Fac Robot Analysis Total . | . . . . . . . . . . . Derelict Logs Recovered . | . . . . . . . . . . . Drone Launches . | . . . . . . . . . . . Drone Recoveries . | . . . . . . . . . . . Exploration | -11 -10 -10 -10 -9 -8 -7 -6 -5 -5 -4 ------------- Run | Yrd Mat Min Exi Min Mat Fac Fac Fac Ext Fac Turns Passed 3359 | 118 181 59 242 181 375 774 654 55 307 413 Spaces Moved 2624 | 87 111 74 302 193 226 326 449 72 301 483 Core 73 | 14 2 . . . . . 1 . . 56 Treads 24 | . . . . . . . . . . 24 Legs 552 | . . . . . 23 258 271 . . . Wheels 1006 | 73 109 74 302 193 203 52 . . . . Hover 858 | . . . . . . . 135 72 301 350 Flight 111 | . . . . . . 16 42 . . 53 Fastest Speed 32 | 50 80 80 80 80 86 122 32 52 52 45 Average Speed 94 | 86 83 80 80 80 93 196 99 52 52 74 Slowest Speed 500 | 100 300 80 80 80 200 370 500 56 56 145 Overloaded Moves . | . . . . . . . . . . . Propulsion Burnouts . | . . . . . . . . . . . Robots Hopped . | . . . . . . . . . . . Cave-ins Triggered . | . . . . . . . . . . . Exploration Rate (%) 23 | 4 23 15 72 31 28 5 19 4 37 16 Regions Visited 10 Branch Regions 4 Pre-discovered Areas 1 | . . . 1 . . . . . . . Known Exits Taken 5 | . . . . . 1 1 1 1 1 . Unknown Exits Taken 5 | 1 1 1 1 1 . . . . . . Scrap Searched . | . . . . . . . . . . . Spaces Dug . | . . . . . . . . . . . Terrain Destroyed 89 | . . . . . . 7 44 . . 38 Melee . | . . . . . . . . . . . Projectile 6 | . . . . . . 2 3 . . 1 AOE 83 | . . . . . . 5 41 . . 37 Terrain Rammed . | . . . . . . . . . . . Walls Destroyed . | . . . . . . . . . . . Machines Disabled . | . . . . . . . . . . . Actions | -11 -10 -10 -10 -9 -8 -7 -6 -5 -5 -4 --------- Run | Yrd Mat Min Exi Min Mat Fac Fac Fac Ext Fac Total 3192 | 111 170 73 302 209 300 430 570 85 421 521 Wait 185 | . 28 . . 5 4 42 . 3 103 . Move 2614 | 86 110 73 301 192 225 325 448 71 300 483 Hop . | . . . . . . . . . . . Pick Up 45 | 8 2 . 1 6 10 8 7 . . 3 Fast Attach 52 | 8 4 . . . 4 7 12 4 1 12 Attach 44 | . 3 . . . 13 11 13 1 . 3 Detach 18 | . 1 . . . . 9 4 1 . 3 Swap 12 | 1 1 . . . . 1 4 2 1 2 Drop 31 | 1 6 . . 1 . 7 7 2 . 7 Fire 163 | 7 15 . . 5 44 20 47 1 16 8 Melee . | . . . . . . . . . . . Ram . | . . . . . . . . . . . Kick 1 | . . . . . . . 1 . . . Crush . | . . . . . . . . . . . Escape Stasis 27 | . . . . . . . 27 . . . Rewire . | . . . . . . . . . . . Trap . | . . . . . . . . . . . Miscellaneous . | . . . . . . . . . . . Route ------- -11/Scrapyard -10/Materials (discovered 2 exits: [*Min x2]) -10/Mines -10/Exiles -9/Mines -8/Materials (discovered 3 exits: *Fac x3) -7/Factory -6/Factory -5/Factory -5/Extension (discovered 2 exits: *Fac x2) -4/Factory History --------- Turn | Location | Event 8 | -11/Scrapyard | Discovered new exit (range 16) 119 | -11/Scrapyard | Entered Materials 272 | -10/Materials | Discovered new exit (range 5) 272 | -10/Materials | Discovered new exit (range 16) 300 | -10/Materials | Entered Mines 310 | -10/Mines | Build established: Mutant 339 | -10/Mines | Found a hidden stash of uninstalled traps 356 | -10/Mines | Deemed a non-threat by the Exiles lab entrance 356 | -10/Mines | Discovered new exit (range 5) 359 | -10/Mines | Entered Exiles 359 | -10/Exiles | Accompanied by 1 ally 380 | -10/Exiles | Met 8R-AWN 389 | -10/Exiles | Led the pair of lost Derelicts to a safe place 392 | -10/Exiles | Met EX-HEX 433 | -10/Exiles | Met EX-DEC 449 | -10/Exiles | Visited The Gauntlet 548 | -10/Exiles | Learned location of Zion (-6) 590 | -10/Exiles | Discovered new exit (range 14) 601 | -10/Exiles | Entered Mines 624 | -9/Mines | Joined a pair of Derelicts in attacking an 0b10 outpost 755 | -9/Mines | Discovered new exit (range 6) 758 | -9/Mines | YI-UF0 nonchalantly dropped a Grenade Launcher on the ground 782 | -9/Mines | Entered Materials 782 | -8/Materials | Evolved 4 slots: Propulsion x1, Utility x3 845 | -8/Materials | Lost 3 parts (1u2w) 869 | -8/Materials | Identified exit to Factory 1029 | -8/Materials | Lost 4 parts (1p2n1u) 1073 | -8/Materials | Build established: Scavenger-Mutant 1113 | -8/Materials | Core integrity fell below 50% 1149 | -8/Materials | Lost 6 parts (2n2u2w) 1152 | -8/Materials | Found Prototype Device 1157 | -8/Materials | Entered Factory 1157 | -7/Factory | Evolved 2 slots: Propulsion x1, Utility x1 1159 | -7/Factory | Identified Active Sensor Suite 1187 | -7/Factory | Lost 3 parts (1p1n1w) 1654 | -7/Factory | Build established: Scavenger-Skirmisher 1812 | -7/Factory | Discovered new exit (range 15) 1928 | -7/Factory | Identified exit to Factory 1931 | -7/Factory | Entered another Factory area 1931 | -6/Factory | Evolved 2 slots: Propulsion x1, Utility x1 2328 | -6/Factory | Destroyed 8 combat bots 2331 | -6/Factory | Lost 5 parts (1p2n1u1w) 2407 | -6/Factory | Core integrity fell below 50% 2461 | -6/Factory | Lost 13 parts (1p4n4u4w) 2575 | -6/Factory | Discovered new exit (range 3) 2576 | -6/Factory | Identified exit to Factory 2585 | -6/Factory | Entered another Factory area 2585 | -5/Factory | Evolved 2 slots: Propulsion x1, Utility x1 2636 | -5/Factory | Discovered new exit (range 9) 2640 | -5/Factory | Identified exit to Extension 2640 | -5/Factory | Entered Extension 2684 | -5/Extension | Build established: Mutant 2788 | -5/Extension | Identified exit to Factory 2865 | -5/Extension | Disrupted transfer network 2871 | -5/Extension | Spotted B-75 Beast 2940 | -5/Extension | Spotted B-75 Beast 2947 | -5/Extension | Entered Factory 2947 | -4/Factory | Evolved 2 slots: Power x1, Utility x1 2975 | -4/Factory | Lost 5 parts (1n4u) 3180 | -4/Factory | Spotted B-86 Titan 3216 | -4/Factory | Lost 4 parts (2n1u1w) 3276 | -4/Factory | Spotted B-86 Titan 3278 | -4/Factory | Core integrity fell below 50% 3357 | -4/Factory | Core integrity fell below 20% 3360 | -4/Factory | Destroyed by H-71 Marshal with Heavy Mass Driver Last Messages --------------- 03303_ Imp. Target Analyzer destroyed. 03303_ Critical hit (Blast). 03306_ Nuclear Reactor explodes. 03306_ Linear Gravjet destroyed. 03311_ ALERT: Suspicious intruders detected, dispatching Specialist reinforcements to area. 03312_ Penetrated by Slug. 03320_ U-05 Engineer lays Concrete. 03351_ Slug penetrates Power Conduit. 03355_ Penetrated by Slug. 03355_ Slug penetrates Wall. 03355_ Slug penetrates Power Conduit. 03356_ Power Conduit explodes. 03356_ Adv. Medium Treads destroyed. 03356_ Power Conduit explodes. 03356_ VTOL Module destroyed. 03356_ Slug penetrates Earth. 03358_ Penetrated by Slug. 03358_ Knocked back. 03359_ Penetrated by Slug. Map ----- +----------------------------------------------------+ | # #???????????????????????????????????? | | !!! # #???????????????????????????????????? | | !!! ?# #???????????????????????????????????? | | !!! +% #???????????????????????????????????? | | # #???????????????????????????????????? | | # #???????????????????????????????????? | | ##??????????????????????????????????? | | #??????????????????????????????????? | | #######????????????????????????????? | | ! #?????? ?????????????????? | | % #?????# ???????????????? | | ####### H ????????????? | | ????????????? | | ####### ????????????? | | # ###; #?????# ?????????????? | | ???# #????## ??????????????? | | " " " " " ???# #????#;;;;;;;;##?????????????? | | " " " " " ???# ######; ;;;##????????????? | | " " " " " ???# # #????????????? | | " " " " " ????# # #????????????? | | " " " "?" ????# ; #????????????? | | " " " "?" ????# # #????????????? | | ? ? " ????????# # #????????????? | | ? ????????????# t# #????????????? | | ??????????????# Y #????????????? | | ??????????????# # h @ % #????????????? | | ??????????????# # % #????????????? | | ??????????????# # #????????????? | | ??????????????###+#####; ;;;##????????????? | | ???????????????????? # ###?????????????? | | ?????????????????? ### ##???????????????? | | ?????????????????" """ ??### ###????????????????? | | ?????????????????" """ ?????# #??????????????????? | | ?????????????????" """ ??????##??????????????????? | | ??????????????????? ??????????????????????????? | | ????????????????????""???????????????????????????? | | ????????????????????""???????????????????????????? | | ?????????????????????????????????????????????????? | | ?????????????????????????????????????????????????? | | ?????????????????????????????????????????????????? | | ?????????????????????????????????????????????????? | | ?????????????????????????????????????????????????? | | ?????????????????????????????????????????????????? | | ?????????????????????????????????????????????????? | | ?????????????????????????????????????????????????? | | ?????????????????????????????????????????????????? | | ?????????????????????????????????????????????????? | | ?????????????????????????????????????????????????? | | ?????????????????????????????????????????????????? | | ?????????????????????????????????????????????????? | +----------------------------------------------------+ Best States ------------- Heat Dissipation 73 Energy Generation 21 Energy Capacity 675 Matter Stores 383 Matter Capacity 450 Sight Range 16 Robot Scan Range 20 Terrain Scan Range 16 Terrain Scan Density 10 Additional Mass Support 6 Base Temperature (-) 100 EM Shielding 3 Armor Coverage 375 Resistance: KI 30 Resistance: TH 30 Propulsion Shielding 33 Evasion (%) 61 Targeting Accuracy 5 Target Analysis 9 Recoil Reduction 1 Particle Charging 20 Defensive Hacking 10 Item Schematics ----------------- None Robot Schematics ------------------ None Fabricated ------------ Nothing Alien Tech Used ----------------- None Achievements -------------- None Challenges ------------ None Game ------ Seed BoreBlastDevice Manual? 0 Play Time 00:49:30 Cumulative 19.6 hours Start 2024.04.11 @ 21:04:58 End 2024.04.11 @ 23:49:49 Sessions 3 Manual Loads 0 Difficulty Rogue Special Mode None Game No. 43 Rogue 38 Adventurer 5 Explorer 0 Win Type - Total 0 Types 0/0/0/0/0/0/0/0/0 Lore% 7 Gallery% 29 Achievement% 20 Wizard Run 0 Options --------- Layout 0 ASCII 0 Keyboard 0 Movement Mouse Keybinds 0 Fullscreen 2 Font 24/Smallcaps Map View 76x50 Zoom Use 39% Tactical HUD 1 Map Filters NONE Filters NONE Steam 1 RUN: 173fb3a0-3528-4353-9368-3621739e65c9